bitfinex/quotes_ETHUSD_20250517
["timestamp","ask_amount","ask_price","bid_price","bid_amount"]
[1747512951294,4.05007432,2469.1,2468.7,4.83533803]
[1747512951709,7.876,2469.2,2468.8,0.55]
[1747512952011,11.92591694,2469.2,2468.8,0.55]
[1747512952495,4.04964589,2469.4,2469.0,0.7525]
[1747512952660,4.04975532,2469.3,2469.0,0.7525]
[1747512953274,4.04993805,2469.2,2469.0,0.7525]
[1747512953502,4.05038681,2468.9,2468.8,0.7525]
[1747512953667,11.91645379,2469.5,2468.5,0.48238486]
[1747512953668,4.05087904,2468.6,2468.5,1.23488486]
[1747512953868,4.05080658,2468.7,2468.5,1.23488486]
[1747512954091,4.05080658,2468.7,2468.5,0.7525]
[1747512954474,4.05062165,2468.8,2468.5,0.7525]
[1747512954680,4.05072682,2468.7,2468.5,0.7525]
[1747512954992,4.05087904,2468.6,2468.5,0.55]
[1747512955195,4.05111756,2468.5,2468.3,26.1587]
[1747512955393,7.874,2469.0,2468.3,26.1587]
[1747512955395,4.05085183,2468.7,2468.3,26.1587]
[1747512955574,4.05090326,2468.6,2468.3,26.1587]
[1747512956198,4.05078949,2468.7,2468.3,26.1587]
[1747512956365,4.05162424,2468.2,2468.0,1.27108486]
[1747512956565,4.05169968,2468.1,2468.0,0.48238486]
[1747512956765,4.05137946,2468.3,2468.0,0.48238486]
[1747512956965,4.05155471,2468.2,2468.0,0.48238486]
[1747512957280,4.05144703,2468.3,2468.0,0.48238486]
[1747512957598,4.05155864,2468.2,2468.0,0.48238486]
[1747512957803,4.05169968,2468.1,2468.0,0.48238486]
[1747512958501,4.05127066,2468.4,2468.0,0.48238486]
[1747512958703,4.05153993,2468.2,2468.0,0.48238486]
[1747512958891,4.05169968,2468.1,2468.0,0.48238486]
[1747512959190,4.05160913,2468.2,2468.0,0.48238486]
[1747512959567,4.05160913,2468.2,2467.9,0.38603643]
[1747512959794,4.05180863,2468.1,2467.9,0.38603643]
[1747512960696,4.05172322,2468.1,2467.9,0.38603643]
[1747512961067,11.95412864,2468.0,2467.9,0.38603643]
[1747512961267,11.91986385,2468.0,2467.9,0.38603643]
[1747512961894,4.05235644,2467.7,2467.6,0.48238486]
[1747512962091,11.92313884,2467.9,2467.6,0.48238486]
[1747512962303,4.05235644,2467.7,2467.6,0.48238486]
[1747512963269,4.08662123,2467.7,2467.6,0.48238486]
[1747512963578,4.08662123,2467.7,2467.3,0.3864674]
[1747512963579,4.05277561,2467.5,2467.3,0.3864674]
[1747512964609,4.05284915,2467.4,2467.2,0.8306]
[1747512964774,4.05277561,2467.5,2467.1,8.423]
[1747512964775,4.05275302,2467.5,2467.1,8.423]
[1747512964978,4.05275302,2467.5,2467.1,10.59618222]
[1747512966011,4.05275302,2467.5,2467.1,2.72318222]
[1747512966410,4.05225092,2467.8,2467.3,0.773]
[1747512966612,4.05244241,2467.7,2467.3,0.773]
[1747512966786,4.0526849,2467.5,2467.3,0.773]
[1747512966986,4.05260049,2467.6,2467.4,0.38651857]
[1747512967514,4.0526849,2467.5,2467.4,0.38651857]
[1747512967674,4.05260243,2467.6,2467.4,0.38651857]
[1747512968490,0.31109418,2468.5,2467.1,8.423]
[1747512968787,4.05205502,2467.9,2467.4,4.60277573]
[1747512969416,17.22190942,2468.3,2467.5,0.773]
[1747512969575,4.05172672,2468.1,2467.7,4.05224938]
[1747512969976,4.05172672,2468.1,2467.6,4.98896701]
[1747512970807,4.05155767,2468.2,2467.7,4.05223828]
[1747512971001,4.05121209,2468.4,2467.9,4.6019604]
[1747512971203,4.05131693,2468.4,2468.0,0.773]
[1747512971488,0.4398,2468.8,2468.1,0.55]
[1747512971685,0.4398,2468.8,2468.4,0.773]
[1747512971686,4.0506092,2468.8,2468.4,0.773]
[1747512971916,4.05073779,2468.7,2468.4,0.773]
[1747512972295,4.05063494,2468.8,2468.4,0.773]
[1747512972790,4.05073102,2468.7,2468.4,0.773]
[1747512972992,4.0503038,2469.0,2468.5,4.60093704]
[1747512973203,4.05019053,2469.1,2468.6,4.05079645]
[1747512973399,4.0503037,2469.0,2468.5,4.60101632]
[1747512973624,4.05007551,2469.1,2468.5,4.60101632]
[1747512973799,7.882,2469.3,2468.5,0.55]
[1747512974003,10.12413827,2469.3,2468.5,2.00522227]
[1747512974441,4.05030153,2469.0,2468.5,6.05618132]
[1747512975390,4.05030153,2469.0,2468.7,0.55]
[1747512975591,4.05040733,2468.9,2468.6,0.38623991]
[1747512975796,4.08467212,2468.9,2468.6,8.25623991]
[1747512975992,4.05048121,2468.9,2468.6,8.25623991]
[1747512976219,4.05028292,2469.0,2468.6,8.25623991]
[1747512976625,4.05015013,2469.1,2468.7,0.55]
[1747512976827,4.05015013,2469.1,2468.8,0.7727]
[1747512977014,4.05024115,2469.0,2468.8,0.7727]
[1747512977634,4.04996527,2469.2,2468.8,0.7727]
[1747512978019,4.04996921,2469.2,2468.8,0.7727]
[1747512978232,4.0498126,2469.3,2468.9,5.13769208]
[1747512978415,4.0498126,2469.3,2468.9,1.08733594]
[1747512979352,7.879,2469.4,2469.0,4.05010928]
[1747512979521,4.04975714,2469.3,2468.9,5.13760085]
[1747512979722,7.879,2469.4,2469.0,4.64122841]
[1747512980415,4.04949015,2469.5,2469.0,4.64122841]
[1747512980833,4.04957366,2469.4,2469.0,4.64122841]
[1747512981153,4.05038681,2468.9,2468.4,0.48238486]
[1747512981353,4.05047814,2468.9,2468.7,7.868]
[1747512981553,4.05050669,2468.9,2468.7,7.868]
[1747512981754,4.05063537,2468.8,2468.5,0.8054]
[1747512981923,4.05047288,2468.9,2468.6,7.868]
[1747512982123,4.05047288,2468.9,2468.5,0.8054]
[1747512982453,4.05047288,2468.9,2468.6,7.868]
[1747512982654,4.05055571,2468.8,2468.6,7.868]
[1747512983247,4.05055571,2468.8,2468.4,4.53351316]
[1747512983248,1.24987934,2468.8,2468.4,7.868]
[1747512983431,4.05116636,2468.5,2468.4,7.868]
[1747512984631,4.05096558,2468.6,2468.4,7.868]
[1747512985026,4.05104314,2468.5,2468.3,17.497]
[1747512985227,4.05137138,2468.3,2468.2,0.48238486]
[1747512985928,4.05186385,2468.0,2467.9,0.38615703]
[1747512986448,11.93186385,2468.0,2467.9,0.38615703]
[1747512987530,4.05235644,2467.7,2467.6,0.48238486]
[1747512987976,4.08662123,2467.7,2467.6,0.48238486]
[1747512988134,4.05235644,2467.7,2467.6,0.48238486]
[1747512989380,4.94105905,2467.7,2467.6,0.48238486]
[1747512989564,4.90679426,2467.7,2467.6,0.48238486]
[1747512990346,4.05334198,2467.1,2467.0,0.8299]
[1747512992086,4.05334198,2467.1,2466.9,7.869]
[1747512992087,4.05367059,2466.9,2466.6,1.28338486]
[1747512992289,4.05358948,2467.0,2466.6,8.91865647]
[1747512992675,4.05329816,2467.2,2466.7,4.05395214]
[1747512992882,4.05321031,2467.2,2466.7,4.6039165]
[1747512993393,8.3148,2467.5,2466.7,0.55]
[1747512993623,4.05333746,2467.2,2466.7,0.55]
[1747512993960,4.05340612,2467.1,2466.7,0.55]
[1747512994464,8.3148,2467.5,2466.7,0.55]
[1747512994680,8.3148,2467.5,2466.8,7.871]
[1747512994681,4.05369628,2466.9,2466.8,7.871]
[1747512994880,8.3148,2467.5,2466.8,7.871]
[1747512995196,4.05335894,2467.1,2466.8,7.871]
[1747512996528,4.05352935,2467.0,2466.8,7.871]
[1747512996735,4.05340047,2467.1,2466.8,7.871]
[1747512999419,4.05351776,2467.0,2466.8,7.871]
[1747512999710,4.05340765,2467.1,2466.8,7.871]
[1747513000122,4.05399927,2466.7,2466.6,1.04865647]
[1747513000282,4.0538708,2466.8,2466.4,0.7954]
[1747513000478,4.05432799,2466.5,2466.4,8.6674]
[1747513000879,4.05432799,2466.5,2466.2,0.48238486]
[1747513000880,4.05457036,2466.4,2466.2,0.48238486]
[1747513001112,4.05465677,2466.3,2466.2,0.48238486]
[1747513001623,4.08892156,2466.3,2466.2,0.48238486]
[1747513001783,4.89984427,2466.3,2466.2,0.48238486]
[1747513001975,4.86557948,2466.3,2466.2,0.48238486]
[1747513002981,4.89984427,2466.3,2466.2,0.48238486]
[1747513003783,4.0549856,2466.1,2465.5,8.6434]
[1747513003983,4.05570704,2465.7,2465.5,8.6434]
[1747513004211,4.05580791,2465.6,2465.5,0.7954]
[1747513004382,4.05605651,2465.5,2465.3,17.504]
[1747513004577,4.05589009,2465.6,2465.3,17.504]
[1747513004777,4.05589009,2465.6,2465.2,8.6262]
[1747513004983,4.05601216,2465.5,2465.2,0.7762]
[1747513005315,4.0556734,2465.7,2465.2,0.7762]
[1747513005683,4.05584331,2465.6,2465.2,0.7762]
[1747513006100,4.49517176,2465.9,2465.2,1.80241273]
[1747513006414,4.86564505,2466.3,2465.2,1.80241273]
[1747513006415,11.90179865,2465.7,2465.2,1.80241273]
[1747513006619,11.90556097,2465.8,2465.3,4.05624547]
[1747513006925,4.05564712,2465.7,2465.2,5.85879196]
[1747513009126,11.90554585,2465.8,2465.3,4.05625555]
[1747513009720,4.05566354,2465.7,2465.2,5.85880688]
[1747513009914,4.05566354,2465.7,2465.3,4.05628586]
[1747513010123,11.90554512,2465.8,2465.3,4.05628586]
[1747513010811,11.90554512,2465.8,2465.2,1.80241273]
[1747513010812,4.05581836,2465.6,2465.2,1.80241273]
[1747513011210,4.0557253,2465.7,2465.2,5.85887205]
[1747513011411,4.0557253,2465.7,2465.2,5.8587862]
[1747513012038,11.90556188,2465.8,2465.3,4.0562903]
[1747513012425,4.05583016,2465.6,2465.2,1.80241273]
[1747513012625,4.05583016,2465.6,2465.2,4.83263808]
[1747513012821,11.90556907,2465.8,2465.3,4.05628252]
[1747513014446,0.81092271,2466.3,2465.8,0.7521]
[1747513014607,4.05466196,2466.3,2465.9,4.05522964]
[1747513014808,7.844,2466.4,2465.8,0.7521]
[1747513014809,7.844,2466.4,2466.0,4.05514278]
[1747513015356,7.844,2466.4,2466.1,4.05494554]
[1747513015506,7.844,2466.4,2466.0,4.94127804]
[1747513015708,7.844,2466.4,2466.0,0.88625557]
[1747513016013,7.844,2466.4,2466.1,4.05492475]
[1747513016549,11.89825712,2466.6,2466.1,4.05492475]
[1747513016845,7.844,2466.6,2466.0,0.88625557]
[1747513017211,4.05455544,2466.4,2466.0,0.88625557]
[1747513018244,4.05455544,2466.4,2466.0,4.94140221]
[1747513018419,4.05490133,2466.2,2466.0,0.88625557]
[1747513018625,4.05490133,2466.2,2465.9,7.852]
[1747513019642,4.05490133,2466.2,2465.8,9.3021]
[1747513019841,0.03426479,2466.1,2465.6,8.6193]
[1747513020053,4.05514534,2466.1,2465.6,8.6193]
[1747513020345,4.05527324,2466.0,2465.6,8.6193]
[1747513021247,4.05532418,2465.9,2465.6,8.6193]
[1747513021743,4.05523184,2466.0,2465.6,8.6193]
[1747513021944,7.844,2466.6,2465.6,8.6193]
[1747513021945,4.05448328,2466.5,2465.9,4.05528848]
[1747513022151,4.05476636,2466.3,2465.8,4.6053972]
[1747513023052,4.05540523,2465.9,2465.7,0.38619026]
[1747513023222,0.03426479,2466.2,2465.7,0.38619026]
[1747513023421,4.05532903,2465.9,2465.7,0.38619026]
[1747513024326,4.05532903,2465.9,2465.8,0.38619026]
[1747513024728,4.86637825,2465.9,2465.8,0.38619026]
[1747513025515,10.05,2466.3,2465.9,4.05520677]
[1747513025729,10.05,2466.3,2465.9,8.6714]
[1747513025941,4.0540008,2466.7,2466.2,4.05472074]
[1747513026115,4.0540008,2466.7,2466.0,0.93619026]
[1747513026323,4.05408485,2466.7,2466.2,4.60474618]
[1747513026521,4.05399927,2466.7,2466.3,0.8184]
[1747513026856,4.05429092,2466.6,2466.3,0.8184]
[1747513027150,0.4398,2466.9,2466.3,0.8184]
[1747513027352,4.05449237,2466.4,2466.3,0.8184]
[1747513027664,4.05449237,2466.4,2466.1,1.30078486]
[1747513027953,4.05466247,2466.3,2466.1,1.30078486]
[1747513028153,4.05444831,2466.5,2466.1,1.30078486]
[1747513028736,4.05482118,2466.2,2466.1,0.48238486]
[1747513028930,4.05465677,2466.3,2466.1,0.86942354]
[1747513028931,4.05474223,2466.3,2466.1,0.86942354]
[1747513029191,4.05457205,2466.4,2466.1,0.86942354]
[1747513029454,4.05476967,2466.3,2466.1,0.86942354]
[1747513029814,4.05405568,2466.7,2466.1,0.86942354]
[1747513030019,4.05435216,2466.5,2466.1,0.86942354]
[1747513030355,4.05469379,2466.3,2466.2,0.38703868]
[1747513031216,25.367,2467.2,2466.3,0.7753]
[1747513031424,4.0543968,2466.5,2466.3,0.7753]
[1747513031629,7.843,2466.8,2466.3,0.7753]
[1747513031835,7.843,2466.7,2466.4,0.38703868]
[1747513032039,4.05376093,2466.9,2466.4,4.44144428]
[1747513032224,4.05376093,2466.9,2466.5,0.55]
[1747513032426,4.05384904,2466.8,2466.5,0.55]
[1747513033068,4.05402035,2466.7,2466.5,0.55]
[1747513033256,4.05402035,2466.7,2466.6,0.38703868]
[1747513033565,4.05390887,2466.8,2466.6,0.38703868]
[1747513033769,10.05,2468.9,2467.1,0.7753]
[1747513034072,1.72299615,2469.0,2468.7,0.55]
[1747513034073,1.28319615,2469.0,2468.7,0.55]
[1747513034268,1.28319615,2469.0,2468.6,0.8168]
[1747513034474,1.31746094,2469.0,2468.4,7.842]
[1747513034659,7.958,2468.9,2468.3,0.55]
[1747513034977,1.36683336,2468.8,2468.2,7.842]
[1747513035133,4.49061746,2468.7,2468.1,0.8168]
[1747513035472,0.03426479,2468.6,2468.2,7.842]
[1747513035768,7.958,2468.7,2468.2,7.842]
[1747513036063,8.88605686,2468.7,2468.2,7.842]
[1747513036469,9.23919615,2469.0,2468.3,7.84]
[1747513037031,1.28319615,2469.0,2468.4,0.55]
[1747513037232,1.28319615,2469.0,2468.8,4.05052446]
[1747513037477,1.28319615,2469.0,2468.9,12.44038681]
[1747513037769,7.96,2469.6,2469.0,4.60011736]
[1747513038164,7.96,2469.6,2469.2,4.86653675]
[1747513038348,7.96,2469.8,2469.3,0.55]
[1747513038547,7.96,2469.8,2469.4,7.84]
[1747513038744,0.4398,2470.1,2469.4,11.88946384]
[1747513039041,7.957,2470.1,2469.7,0.55]
[1747513039248,0.4398,2470.5,2469.7,0.55]
[1747513039568,4.0471577,2470.9,2470.0,4.04845471]
[1747513039755,7.961,2470.8,2470.1,7.838]
[1747513039954,0.4398,2471.0,2470.2,0.55]
[1747513040167,7.967,2471.0,2470.5,4.04769452]
[1747513040332,0.4398,2471.4,2470.4,4.04791122]
[1747513040694,7.981,2471.7,2470.7,0.55]
[1747513040852,0.4398,2471.8,2471.0,0.55]
[1747513041188,0.4398,2472.2,2471.8,4.04563476]
[1747513041351,7.987,2472.3,2471.8,11.88362705]
[1747513041678,0.7987,2472.2,2471.8,7.838]
[1747513042573,0.7987,2472.2,2471.6,7.838]
[1747513042779,0.7987,2472.2,2471.7,4.04566773]
[1747513042982,0.7987,2472.2,2471.6,11.88389868]
[1747513043284,0.4398,2472.5,2471.7,8.590456]
[1747513043487,0.48498789,2473.3,2471.9,0.55]
[1747513043687,7.977,2473.0,2472.2,4.0448268]
[1747513043835,4.04395308,2472.9,2472.3,7.834]
[1747513044475,7.977,2473.0,2472.3,11.87878935]
[1747513044638,0.7977,2472.9,2472.3,7.834]
[1747513044840,0.7977,2472.9,2472.3,11.87879489]
[1747513045038,0.7977,2472.9,2472.3,7.834]
[1747513045263,0.7977,2472.9,2471.9,4.59536285]
[1747513045462,4.04475251,2472.4,2472.0,7.83]
[1747513045737,4.044782,2472.4,2472.0,7.83]
[1747513045938,4.0447547,2472.4,2472.0,7.83]
[1747513046572,4.04484932,2472.3,2472.0,7.83]
[1747513046878,12.04850151,2472.5,2472.0,7.83]
[1747513046879,8.004,2472.5,2472.0,7.83]
[1747513047045,4.04465296,2472.4,2472.0,7.83]
[1747513047243,4.04489666,2472.3,2472.0,7.83]
[1747513047792,4.04488908,2472.3,2472.0,7.83]
[1747513047986,8.84838,2472.5,2472.0,7.83]
[1747513048175,8.004,2472.5,2472.0,7.83]
[1747513048375,4.04448938,2472.5,2472.0,7.83]
[1747513048575,7.985,2472.7,2472.1,0.87365197]
[1747513048789,7.985,2472.7,2472.1,0.8332]
[1747513049085,4.04437577,2472.6,2472.1,0.8332]
[1747513049386,7.985,2472.7,2472.1,2.1040505]
[1747513049586,4.04432746,2472.6,2472.1,2.1040505]
[1747513050600,12.02916963,2472.7,2472.1,2.1040505]
[1747513050601,4.04449203,2472.5,2472.1,2.1040505]
[1747513050803,4.08849515,2473.3,2472.3,4.04481656]
[1747513051009,0.04518789,2473.3,2472.6,0.55]
[1747513051308,0.04518789,2473.3,2472.8,0.55]
[1747513051514,0.04518789,2473.3,2473.0,4.5935469]
[1747513051995,4.04343146,2473.2,2472.7,0.8332]
[1747513052161,4.08845781,2473.3,2473.1,7.827]
[1747513052356,0.04518789,2473.3,2473.2,1.3832]
[1747513052556,0.04518789,2473.3,2473.2,21.47796984]
[1747513052807,8.0,2474.8,2473.9,0.55]
[1747513052969,4.04174249,2474.2,2474.0,7.827]
[1747513053156,8.019,2474.7,2474.0,7.827]
[1747513053356,4.04156218,2474.3,2474.0,7.827]
[1747513053589,4.0417288,2474.2,2474.0,7.827]
[1747513054094,4.04220057,2473.9,2473.8,0.8332]
[1747513054391,4.04132101,2474.5,2473.8,8.6602]
[1747513054597,8.019,2474.7,2473.9,0.55]
[1747513054796,7.824,2475.3,2473.9,0.55]
[1747513055099,8.492,2475.2,2473.9,0.59041445]
[1747513055298,4.04064916,2474.9,2474.3,8.55]
[1747513055601,4.04064916,2474.9,2474.5,0.55]
[1747513055602,4.04081675,2474.8,2474.5,0.55]
[1747513055895,4.04105714,2474.6,2474.5,0.55]
[1747513056098,4.04122044,2474.5,2474.4,7.824]
[1747513056308,4.04046026,2475.0,2474.4,7.824]
[1747513056309,4.040546,2475.0,2474.4,7.824]
[1747513056594,4.04114079,2474.6,2474.4,7.824]
[1747513056972,4.04122044,2474.5,2474.4,7.824]
[1747513057301,4.04148019,2474.4,2474.1,8.55]
[1747513057513,4.04129588,2474.5,2474.2,7.824]
[1747513058159,4.04122044,2474.5,2474.3,7.821]
[1747513058356,4.04122044,2474.5,2474.4,7.821]
[1747513059694,0.485,2475.2,2474.4,7.821]
[1747513059869,4.04011176,2475.2,2474.6,0.759]
[1747513060077,4.04052117,2475.0,2474.6,0.759]
[1747513060384,4.0406111,2474.9,2474.6,0.759]
[1747513060892,4.03975115,2475.4,2474.1,7.4435559]
[1747513060893,4.03975115,2475.4,2474.7,7.82]
[1747513061095,4.04097829,2474.7,2474.6,7.82]
[1747513062698,4.04073056,2474.8,2474.6,7.82]
[1747513062699,4.04078669,2474.8,2474.6,7.82]
[1747513063197,4.04089384,2474.7,2474.6,7.82]
[1747513063496,4.04114096,2474.6,2474.3,0.55]
[1747513063693,4.04091798,2474.7,2474.4,7.975]
[1747513064000,4.04119469,2474.6,2474.4,7.975]
[1747513064359,4.04122044,2474.5,2474.4,7.975]
[1747513064565,4.04075951,2474.8,2474.4,7.975]
[1747513064868,4.04091931,2474.7,2474.4,9.7034]
[1747513065665,4.04007756,2475.2,2474.5,8.59040986]
[1747513065994,7.96,2475.3,2474.4,9.7034]
[1747513065995,4.04114676,2474.6,2474.4,1.7284]
[1747513066199,7.96,2475.3,2474.6,7.975]
[1747513066562,4.04036926,2475.1,2474.6,7.975]
[1747513066764,4.04044872,2475.0,2474.6,7.975]
[1747513066995,4.04057652,2474.9,2474.6,7.975]
[1747513067598,4.04007756,2475.2,2474.4,0.5]
[1747513067806,4.04085533,2474.8,2474.7,7.974]
[1747513067976,1.33336667,2475.5,2474.8,0.55]
[1747513068180,5.37299831,2475.5,2474.8,4.59071832]
[1747513068476,4.03975306,2475.4,2474.9,4.04048945]
[1747513068674,4.03975306,2475.4,2474.8,4.59064159]
[1747513068902,5.37298238,2475.5,2474.9,1.74102893]
[1747513069103,1.33336667,2475.5,2475.3,4.03991435]
[1747513069308,1.33336667,2475.5,2475.4,8.524]
[1747513069479,1.33336667,2475.5,2475.4,0.55]
[1747513069663,1.33336667,2475.5,2475.4,7.973]
[1747513070284,1.33336667,2475.5,2475.4,8.35218157]
[1747513070479,1.33336667,2475.5,2475.4,11.07381653]
[1747513071005,5.37295463,2475.5,2475.4,8.35218157]
[1747513071614,5.37295463,2475.5,2475.4,0.37918157]
[1747513073491,4.03975115,2475.4,2475.3,0.48238486]
[1747513074312,4.55901594,2475.4,2475.3,0.48238486]
[1747513074669,4.55901594,2475.4,2475.1,0.64317981]
[1747513074886,4.04089384,2474.7,2474.6,0.48238486]
[1747513075602,4.04082323,2474.8,2474.6,0.48238486]
[1747513075904,4.04089384,2474.7,2474.6,0.48238486]
[1747513077807,4.0411662,2474.6,2474.4,26.4049]
[1747513078017,12.00847114,2475.0,2474.4,25.424]
[1747513078304,4.04122044,2474.5,2474.4,17.452]
[1747513078620,4.04073539,2474.8,2474.4,25.974]
[1747513078775,7.968,2475.0,2474.5,4.5911353]
[1747513078979,12.00841152,2475.0,2474.6,2.62993035]
[1747513079711,7.947,2475.4,2474.9,0.55]
[1747513079908,7.947,2475.4,2475.0,7.972]
[1747513080118,4.03987717,2475.4,2475.1,0.55]
[1747513080314,1.33336667,2475.5,2475.4,0.8166]
[1747513080610,1.33336667,2475.5,2475.4,1.3666]
[1747513081110,1.33336667,2475.5,2475.3,8.47864124]
[1747513081111,4.03975115,2475.4,2475.3,0.47864124]
[1747513081881,4.03975115,2475.4,2475.3,0.86155423]
[1747513082817,13.43702173,2475.4,2475.3,0.86155423]
[1747513083109,21.43702173,2475.4,2475.3,0.86155423]
[1747513083316,12.04007756,2475.2,2475.1,0.63818832]
[1747513083499,20.49807756,2475.2,2475.1,0.63818832]
[1747513083699,23.20620779,2475.2,2475.1,0.63818832]
[1747513084082,4.52605714,2474.6,2474.5,1.29279808]
[1747513084280,28.51332193,2474.6,2474.5,1.29279808]
[1747513084485,4.52605714,2474.6,2474.5,1.29279808]
[1747513084684,12.50505714,2474.6,2474.5,1.29279808]
[1747513085300,12.02005714,2474.6,2474.5,1.29279808]
[1747513086819,4.04146528,2474.4,2474.1,8.736]
[1747513087191,7.979,2474.6,2474.1,8.736]
[1747513087415,4.0412986,2474.5,2474.2,0.8736]
[1747513087609,7.979,2474.6,2474.2,0.55]
[1747513087824,4.04132726,2474.5,2474.2,0.55]
[1747513089139,4.04096995,2474.7,2474.2,0.55]
[1747513089365,7.981,2475.1,2474.6,0.55]
[1747513089540,4.04072237,2474.9,2474.6,8.522]
[1747513089849,4.04069963,2474.9,2474.6,8.522]
[1747513090049,4.04079178,2474.8,2474.6,0.55]
[1747513090270,4.04130122,2474.5,2474.3,8.522]
[1747513090563,4.04138376,2474.4,2474.3,8.522]
[1747513091318,4.04107281,2474.6,2474.3,8.522]
[1747513091563,4.04107281,2474.6,2474.3,0.55]
[1747513091871,4.04122082,2474.5,2474.3,8.524]
[1747513092048,4.04070766,2474.9,2474.4,0.55]
[1747513093759,4.04187381,2474.1,2474.0,9.26679808]
[1747513093932,4.04187381,2474.1,2474.0,1.29279808]
[1747513094133,4.88449703,2474.1,2474.0,1.29279808]
[1747513094375,4.04187381,2474.1,2474.0,1.29279808]
[1747513095071,12.02972791,2474.2,2473.4,7.974]
[1747513095072,4.0424519,2473.8,2473.4,7.974]
[1747513095236,4.04254126,2473.7,2473.4,7.974]
[1747513095562,4.04285425,2473.5,2473.4,8.524]
[1747513095764,4.04270951,2473.6,2473.4,8.524]
[1747513095930,4.04269243,2473.6,2473.4,8.524]
[1747513096265,4.52687381,2474.1,2473.4,8.524]
[1747513096266,4.04201895,2474.1,2473.4,9.45249]
[1747513096468,4.04199188,2474.1,2473.6,0.55]
[1747513096632,4.0420487,2474.0,2473.6,0.55]
[1747513096829,4.04237101,2473.8,2473.6,0.55]
[1747513097275,4.04252738,2473.7,2473.6,8.525]
[1747513097634,4.04252738,2473.7,2473.6,8.90993445]
[1747513097836,4.04245428,2473.8,2473.6,8.90993445]
[1747513098031,4.04236611,2473.8,2473.6,8.90993445]
[1747513099449,9.04643883,2475.1,2473.7,0.38493445]
[1747513099653,4.04172216,2474.2,2473.8,0.7609]
[1747513099982,4.04187621,2474.1,2473.8,0.7609]
[1747513100380,7.982,2474.4,2473.8,0.7609]
[1747513100381,12.02346172,2474.4,2473.8,4.80325941]
[1747513100596,4.04161946,2474.3,2473.9,0.55]
[1747513101246,4.04161946,2474.3,2474.0,0.38493445]
[1747513101671,4.04187381,2474.1,2474.0,0.38493445]
[1747513102556,4.04161946,2474.3,2474.0,0.38493445]
[1747513102557,7.979,2474.6,2474.0,0.38493445]
[1747513102893,12.02594513,2475.3,2474.5,0.7609]
[1747513103108,4.04063667,2474.9,2474.6,7.975]
[1747513103962,4.04074446,2474.8,2474.7,0.38493445]
[1747513104162,12.02474446,2474.8,2474.7,0.38493445]
[1747513104483,12.50974446,2474.8,2474.7,0.38493445]
[1747513104685,14.1647789,2474.8,2474.7,0.38493445]
[1747513106044,4.04089384,2474.7,2473.9,7.975]
[1747513106378,4.04171757,2474.2,2473.9,7.975]
[1747513106589,4.04194951,2474.1,2473.9,7.975]
[1747513106894,4.04180546,2474.2,2473.9,7.975]
[1747513107073,4.04140249,2474.4,2474.0,2.1475]
[1747513107483,4.04140249,2474.4,2474.1,0.38516184]
[1747513107851,4.04157354,2474.3,2474.1,0.38516184]
[1747513108189,4.04171045,2474.2,2474.1,0.38516184]
[1747513108394,13.32403885,2474.2,2474.1,0.38516184]
[1747513108993,4.04232484,2473.9,2473.6,0.7609]
[1747513109693,4.04025007,2475.1,2473.9,0.55]
[1747513109895,4.04056729,2474.9,2474.0,7.975]
[1747513110057,4.04187381,2474.1,2474.0,7.975]
[1747513110392,4.04180198,2474.2,2474.0,7.975]
[1747513110982,4.041623,2474.3,2473.9,0.55]
[1747513111300,4.04122044,2474.5,2474.0,7.975]
[1747513111587,4.041407,2474.4,2474.0,8.36016242]
[1747513112358,4.04187381,2474.1,2474.0,8.36016242]
[1747513112776,0.80834828,2474.1,2473.0,1.29279808]
[1747513112975,4.04350814,2473.1,2473.0,1.29279808]
[1747513113174,28.28877293,2473.1,2473.0,1.29279808]
[1747513113492,28.25450814,2473.1,2473.0,1.29279808]
[1747513113693,29.30913073,2473.1,2473.0,1.29279808]
[1747513113896,5.19793073,2473.1,2473.0,1.29279808]
[1747513114095,8.24,2473.2,2473.0,1.29279808]
[1747513114300,4.04350814,2473.1,2473.0,1.29279808]
[1747513115562,4.04374653,2473.0,2472.6,16.7617]
[1747513115983,7.975,2473.5,2472.7,0.04043808]
[1747513116199,8.235,2473.6,2472.9,0.55]
[1747513116501,4.04329133,2473.3,2472.9,0.55]
[1747513116695,4.04309439,2473.4,2472.9,1.44287]
[1747513117205,4.04379958,2473.0,2472.9,7.977]
[1747513117499,4.04376246,2473.0,2472.6,8.7847]
[1747513117683,4.04367165,2473.0,2472.6,8.7847]
[1747513117888,4.04383517,2472.9,2472.6,8.7847]
[1747513118086,4.04383517,2472.9,2472.5,7.977]
[1747513118395,4.04383517,2472.9,2472.3,1.45001594]
[1747513118601,4.04383517,2472.9,2472.3,9.45001594]
[1747513120799,4.04383517,2472.9,2472.3,1.45001594]
[1747513120998,4.04383517,2472.9,2472.3,0.8079]
[1747513122204,8.233,2473.2,2472.4,0.55]
[1747513122367,12.27648259,2473.2,2472.9,0.78]
[1747513122570,4.04356101,2473.1,2472.9,0.78]
[1747513124717,8.221,2473.4,2472.9,0.78]
[1747513124885,4.04320626,2473.3,2472.9,1.69587]
[1747513125086,12.26192859,2473.5,2473.0,0.55]
[1747513125882,4.04318117,2473.3,2472.9,9.69587]
[1747513126079,4.04334465,2473.2,2472.9,0.78]
[1747513126279,4.04351468,2473.1,2472.9,0.78]
[1747513127190,4.04367165,2473.0,2472.8,0.3787]
[1747513127385,4.04383517,2472.9,2472.8,0.3787]
[1747513128921,4.07809996,2472.9,2472.8,0.3787]
[1747513129116,5.67691233,2472.9,2472.8,0.3787]
[1747513130322,14.00071233,2472.9,2472.8,0.3787]
[1747513131401,27.00271791,2472.9,2472.8,0.3787]
[1747513131839,30.73984391,2472.9,2472.8,0.3787]
[1747513132144,30.21837869,2472.9,2472.8,0.3787]
[1747513132517,27.85250569,2472.9,2472.8,0.3787]
[1747513132717,30.21838169,2472.9,2472.8,0.3787]
[1747513133640,30.21838169,2472.9,2471.3,0.7593]
[1747513133641,4.04595168,2471.7,2471.3,0.7593]
[1747513133836,4.04597782,2471.6,2471.3,1.69023]
[1747513134136,12.22720002,2472.1,2471.4,12.59614489]
[1747513134340,8.182,2472.1,2471.6,4.04593436]